Cogmind - Beta 15 --- EXPLORER MODE // 2025.07.01 @ 12:25:56 Player: viper Result: Self-destructed Performance ------------- Evolutions (5) 2500 Regions Visited (4) 800 Robots Destroyed (42) 210 Value Destroyed (1551) 1551 Prototype IDs (6) 120 Alien Tech Used (0) 0 Bonus (-13) -13 TOTAL SCORE: 5168 Bonus ------- Friendly Fire -13 Cogmind --------- Core Integrity 840/1000 Matter 339/450 Energy 90/100 System Corruption 3% Temperature Cool (0) Movement Core (1550) Ox30 Location -5/Factory Parts ------- > --- POWER (3) -------- (None) > --- PROPULSION (4) --- (None) > --- UTILITY (7) ------ Advanced Heat Sink Huge Storage Unit Large Matter Pod Improved Signal Interpreter > --- WEAPON (4) ------- Subdweller Shrapnel Launcher > --- INVENTORY (25) --- Ion Engine Ion Engine Light Ion Engine Aluminum Leg Aluminum Leg Aluminum Leg Makeshift Microdissipator Network Structural Scanner Makeshift Light Armor Plating Medium Laser Axe Scrap Shield Fragment (43) Peak State ------------ > --- POWER ------------ Ion Engine Ion Engine Deuterium Engine > --- PROPULSION ------- Aluminum Leg Aluminum Leg Aluminum Leg Improved Aluminum Leg > --- UTILITY ---------- Advanced Heat Sink Huge Storage Unit Large Matter Pod Improved Signal Interpreter Improved Targeting Computer Matter Filter Weapon Shielding > --- WEAPON ----------- Medium Laser Medium Laser Subdweller Beam Cannon Makeshift Shrapnel Gun > --- INVENTORY -------- Ion Engine Ion Engine Light Ion Engine Aluminum Leg Aluminum Leg Aluminum Leg Makeshift Microdissipator Network Structural Scanner Makeshift Light Armor Plating Subdweller Shrapnel Launcher Flamer Axe Scrap Shield Fragment [Rating: 37] Favorites ----------- Power Ion Engine Engine Ion Engine Propulsion Aluminum Leg Leg Aluminum Leg Utility Weapon Shielding Device Structural Scanner Storage Huge Storage Unit Processor Targeting Computer Protection Weapon Shielding Weapon Medium Laser Energy Gun Medium Laser Energy Cannon Subdweller Beam Cannon Ballistic Gun Makeshift Shrapnel Gun Launcher Subdweller Shrapnel Launcher Special Weapon Mining Laser Build | -11 -10 -10 -7 -5 ------- Run | Yrd Mat Sub Scr Fac Slots Evolved 11 | . 1 . . 10 Power 2 | . . . . 2 Propulsion 2 | . . . . 2 Utility 5 | . 1 . . 4 Weapon 2 | . . . . 2 Parts Attached 35 | 7 8 2 6 12 Power 5 | 1 2 . 1 1 Engine 5 | 1 2 . 1 1 Core . | . . . . . Reactor . | . . . . . Propulsion 6 | 2 1 . 1 2 Treads . | . . . . . Leg 6 | 2 1 . 1 2 Wheel . | . . . . . Hover . | . . . . . Flight . | . . . . . Utility 16 | 2 4 . 3 7 Device 7 | . . . 3 4 Storage 5 | 1 3 . . 1 Processor 3 | 1 . . . 2 Hackware . | . . . . . Protection 1 | . 1 . . . Artifact . | . . . . . Weapon 8 | 2 1 2 1 2 Energy Gun 3 | 2 1 . . . Energy Cannon 1 | . . . . 1 Ballistic Gun 1 | . . . 1 . Ballistic Cannon . | . . . . . Launcher 1 | . . 1 . . Special Weapon 2 | . . 1 . 1 Impact Weapon . | . . . . . Slashing Weapon . | . . . . . Piercing Weapon . | . . . . . Special Melee Weapon . | . . . . . Unidentified Prototypes . | . . . . . Parts Lost 19 | . . 2 . 17 Power 3 | . . . . 3 Propulsion 4 | . . . . 4 Utility 7 | . . 1 . 6 Weapon 5 | . . 1 . 4 Highest Loss Streak 14 | . . 2 . 14 To Critical Strikes . | . . . . . Average Backups 14 | 1 11 15 21 13 Power 3 | . 3 4 4 3 Propulsion 3 | . 3 4 4 3 Utility 4 | . 3 5 7 4 Weapon 2 | . 1 2 4 3 Tool/Special . | . . . . . Unused Backups 4 | . . . . 4 Power 1 | . . . . 1 Propulsion 1 | . . . . 1 Utility 1 | . . . . 1 Weapon 1 | . . . . 1 Tool/Special . | . . . . . Average Slot Usage (%) 97 | . 99 94 99 93 Engine 12 | . 12 12 12 14 Leg 24 | . 24 25 25 20 Device 7 | . . . 22 21 Storage 11 | . 12 12 12 7 Processor 6 | . 12 7 . 2 Protection 8 | . 11 12 2 4 Energy Gun 15 | . 25 18 1 6 Ballistic Gun 2 | . . . 10 4 Launcher 4 | . . 4 12 3 Peak Build Rating 37 | 7 9 10 19 37 Average Rating 13 | 5 8 9 16 30 On Entrance 9 | . 7 9 10 19 Naked Turns . | . . . . . Heaviest Build 129 | 19 90 96 101 129 Greatest Support 43 | 20 20 20 23 43 Greatest Overweight (x) 33 | 1 4 4 4 33 Average Overweight (x) 2 | . 2 4 4 2 Largest Inventory Capacity 25 | 10 25 25 25 25 Average Capacity 23 | 8 21 25 25 25 Most Carried 25 | 3 15 19 25 24 Average Carried 15 | 1 11 16 22 14 Final Capacity 25 | 10 25 25 25 25 Final Carried 25 | 3 15 19 25 12 Class Distribution -------------------- 88% | Hacker-Mutant 8% | Hacker-Skirmisher 3% | Hacker-Gunner Dominant Class ---------------- Hacker-Mutant | -10/Materials Hacker-Mutant | -10/Subcaves Hacker-Mutant | -7/Scraptown Hacker-Skirmisher | -5/Factory Resources | -11 -10 -10 -7 -5 ----------- Run | Yrd Mat Sub Scr Fac Matter Collected 1051 | 203 222 288 52 286 Remotely 136 | . . . . 136 Salvage Created 1628 | . 693 235 . 700 Parts 73 | . 38 16 . 19 Haulers Intercepted 1 | . 1 . . . Recyclers Shooed . | . . . . . Parts Field Recycled . | . . . . . Retrieved Matter . | . . . . . Parts Self-Destructed . | . . . . . Prevented . | . . . . . Kills | -11 -10 -10 -7 -5 ------- Run | Yrd Mat Sub Scr Fac Combat Hostiles Destroyed 33 | . 14 7 . 12 Guns 22 | . 12 4 . 6 Cannons 1 | . . . . 1 AOE 7 | . 2 3 . 2 Classes Destroyed 10 | . 4 1 . 5 Worker 3 | . . . . 3 Hauler 1 | . 1 . . . Recycler 1 | . . . . 1 Watcher 4 | . 3 . . 1 Swarmer 3 | . 2 1 . . Grunt 17 | . 12 . . 5 Sentry 2 | . . . . 2 Hunter 3 | . . . . 3 Programmer 2 | . . . . 2 Subdweller 6 | . . 6 . . Best Kill Streak 5 | . 3 2 . 5 Combat Bots Only 4 | . 3 2 . 4 Max Kills in Single Turn 2 | . 2 1 . 2 Gunslinging . | . . . . . Exploded 1 | . 1 1 . 1 Melee . | . . . . . Uniques/NPCs Destroyed . | . . . . . Combat | -11 -10 -10 -7 -5 -------- Run | Yrd Mat Sub Scr Fac Hostile Shots Fired 212 | . 60 33 . 119 Missed 55 | . 13 10 . 32 Hits 157 | . 47 23 . 87 Projectile 157 | . 47 23 . 87 Critical Strikes 3 | . . . . 3 Damage Taken 1820 | . 374 378 . 1068 Core 407 | . 90 157 . 160 Absorbed by Shields . | . . . . . Redirected to Shielding 76 | . 23 18 . 35 Ignored by Resistances 1103 | . 241 223 . 639 Regen/Repaired (Parts) 78 | . 78 . . . Core Remaining (%) 50 | 100 . . 1 . Volleys Fired 102 | . 38 23 . 41 Largest 4 | . 2 2 . 4 Hottest 204 | . 100 100 . 204 Shots Fired 222 | . 75 45 . 102 Gun 187 | . 75 37 . 75 Cannon 14 | . . . . 14 Launcher 16 | . . 7 . 9 Special 5 | . . 1 . 4 Kinetic 51 | . . 7 . 44 Thermal 138 | . 56 24 . 58 Explosive . | . . . . . Electromagnetic 33 | . 19 14 . . Robot Hit Streak 61 | . 35 44 . 61 Robot Miss Streak 2 | . 2 . . 2 Penetration Max . | . . . . . Secondary Targets 2 | . 2 . . . Max Gunslinging Chain 1 | . 1 . . . Shots Hit Robots 189 | . 62 37 . 90 Core Hits 100 | . 33 13 . 54 Critical Kills 2 | . . . . 2 Critical Parts Destroyed . | . . . . . Critical Strikes 13 | . 7 1 . 5 Burn 11 | . 7 1 . 3 Meltdown 2 | . . . . 2 Melee Attacks . | . . . . . Impact . | . . . . . Slashing . | . . . . . Piercing . | . . . . . Sneak Attacks . | . . . . . Combat Hostiles . | . . . . . Follow-up Attacks . | . . . . . Damage Inflicted 3913 | . 913 833 . 2167 Guns 2449 | . 792 384 . 1273 Cannons 332 | . . . . 332 Explosions 1052 | . 94 449 . 509 Melee . | . . . . . Ramming 41 | . 27 . . 14 Kinetic 1721 | . . 410 . 1311 Thermal 1775 | . 667 266 . 842 Explosive . | . . . . . Electromagnetic 376 | . 219 157 . . Impact . | . . . . . Slashing . | . . . . . Piercing . | . . . . . Highest Corruption 4 | . 4 4 . 3 Average Corruption 3 | . 2 4 . 1 Corruption Purged . | . . . . . Corruption Blocked . | . . . . . Effects 80 | . 43 33 . 4 Message Errors 21 | . 11 9 . 1 Matter Fused 14 | . 5 8 . 1 Heat Flow Errors 12 | . 6 5 . 1 Energy Discharges 14 | . 10 4 . . Data Loss (minor) 7 | . 4 3 . . Data Loss (major) 5 | . 2 2 . 1 Misfires 4 | . 3 1 . . Alerts 2 | . 2 . . . Weapon Failures 1 | . . 1 . . Overload Shots . | . . . . . Overflow Damage 22 | . 11 8 . 3 Projectiles 3 | . . . . 3 Explosions 19 | . 11 8 . . Melee . | . . . . . Knockbacks . | . . . . . Impact . | . . . . . Kinetic . | . . . . . Secondary . | . . . . . Self-Inflicted Damage 137 | . 17 78 . 42 Shots 6 | . 1 3 . 2 Rammed . | . . . . . Targets Rammed 5 | . 4 . . 1 Kicked 5 | . 4 . . 1 Crushed . | . . . . . Highest Temperature 660 | . 302 256 . 660 Average Temperature 128 | . 97 110 . 202 Received Heat Transfer 660 | . 303 87 . 270 Effects 22 | . 6 . . 16 Shutdowns 3 | . . . . 3 Energy Bleed 4 | . 1 . . 3 Interference 11 | . 5 . . 6 Short Circuit 2 | . . . . 2 Damage (major) 2 | . . . . 2 Siege Activations . | . . . . . Martial Activations . | . . . . . Shielding Activations . | . . . . . Robots Disrupted 1 | . . . . 1 Combat Hostiles . | . . . . . Robots Corrupted . | . . . . . Combat Hostiles . | . . . . . Parts Fried 2 | . 1 1 . . Impact Corruptions . | . . . . . Robots Melted 3 | . . . . 3 Combat Hostiles 3 | . . . . 3 Parts Melted 10 | . 7 . . 3 Heat Transferred 5398 | . 2370 790 . 2238 Parts Sabotaged . | . . . . . Parts Stolen . | . . . . . Parts Stripped . | . . . . . Power Chain Reactions 3 | . 2 1 . . Alert | -11 -10 -10 -7 -5 ------- Run | Yrd Mat Sub Scr Fac Maximum Alert Level . | . . . . . Low Security (%) 100 | 100 100 . . 100 Level 1 . | . . . . . Level 2 . | . . . . . Level 3 . | . . . . . Level 4 . | . . . . . Level 5 . | . . . . . High Security . | . . . . . Max Security . | . . . . . Peak Influence 112 | . 63 . . 112 Initial . | . . . . . Average 9 | . 5 . . 25 Influence Increases 913 | . 416 30 . 467 Destroy 0b10 Robot/C 540 | . 280 20 . 240 Destroy 0b10 Robot/NC 45 | . 20 . . 25 Destroy Leader 140 | . 68 10 . 62 Successful Hack 33 | . 33 . . . Disable Machine 12 | . 8 . . 4 Destroy Structure 113 | . 7 . . 106 Partial Spotted 15 | . . . . 15 Lose Combat Pursuer 15 | . . . . 15 Influence Decreases 836 | . 416 30 . 390 Time Decay 702 | . 416 30 . 256 Lost Part 134 | . . . . 134 Squads Dispatched 6 | . 2 . . 4 Investigation 3 | . 2 . . 1 Extermination 1 | . . . . 1 Reinforcement 1 | . . . . 1 Assault . | . . . . . Garrison 1 | . . . . 1 Intercept . | . . . . . Searches Triggered . | . . . . . Construction Impeded 1 | . . . . 1 Haulers Reinforced . | . . . . . Active Scanning Responses . | . . . . . Cargo Convoy Interrupts . | . . . . . Stealth | -11 -10 -10 -7 -5 --------- Run | Yrd Mat Sub Scr Fac Distress Signals 3 | . . . . 3 Communications Jammed . | . . . . . Distress Signals . | . . . . . Times Spotted 45 | . 18 7 . 20 Peak Tracking Total 5 | . 3 2 . 5 Tactical Retreats 2 | . . 1 . 1 Traps | -11 -10 -10 -7 -5 ------- Run | Yrd Mat Sub Scr Fac Traps Triggered 3 | . 3 . . . Indirectly . | . . . . . Trap Hack Attempts . | . . . . . Triggered . | . . . . . Disarmed . | . . . . . Reprogrammed 1 | . 1 . . . Reused . | . . . . . Traps Extracted . | . . . . . Installed . | . . . . . Triggered . | . . . . . Machines | -11 -10 -10 -7 -5 ---------- Run | Yrd Mat Sub Scr Fac Machines Disabled 3 | . 2 . . 1 Max in Single Turn 1 | . 1 . . 1 Machines Repaired . | . . . . . Machines Dismantled . | . . . . . Machines Sabotaged . | . . . . . Overloaded Fab Kills . | . . . . . Hacking | -11 -10 -10 -7 -5 --------- Run | Yrd Mat Sub Scr Fac Machines Accessed 10 | . 9 . . 1 Terminals 9 | . 8 . . 1 Fabricators . | . . . . . Repair Stations 1 | . 1 . . . Recycling Units . | . . . . . Scanalyzers . | . . . . . Garrison Access . | . . . . . Total Hacks 49 | . 46 . . 3 Successful 37 | . 36 . . 1 Failed 12 | . 10 . . 2 Catastrophic 1 | . 1 . . . Database Lockouts . | . . . . . Manual 2 | . 2 . . . Terminals 44 | . 41 . . 3 Fabricators . | . . . . . Repair Stations 5 | . 5 . . . Recycling Units . | . . . . . Scanalyzers . | . . . . . Garrison Access . | . . . . . Terminal Hacks 33 | . 32 . . 1 Record 4 | . 4 . . . Prototype ID Bank 4 | . 4 . . . Emergency Access Points 1 | . 1 . . . Recycling Unit Index 1 | . 1 . . . Locate Traps 5 | . 5 . . . Reprogram Traps 1 | . 1 . . . Dispatch Records 1 | . 1 . . . Maintenance Status 1 | . 1 . . . Surveillance Status 1 | . 1 . . . Transport Status 1 | . 1 . . . Investigation Status 2 | . 2 . . . Reinforcement Status 1 | . 1 . . . Assault Status 1 | . 1 . . . Recall Investigation 1 | . 1 . . . Hauler Manifests 3 | . 3 . . . Zone Layout 5 | . 4 . . 1 Fabricator Hacks . | . . . . . Repair Station Hacks 4 | . 4 . . . Scan Component 2 | . 2 . . . Repair 2 | . 2 . . . Recycling Unit Hacks . | . . . . . Scanalyzer . | . . . . . Garrison Access Hacks . | . . . . . Unauthorized Hacks . | . . . . . Terminals . | . . . . . Fabricators . | . . . . . Repair Stations . | . . . . . Recycling Units . | . . . . . Scanalyzers . | . . . . . Garrison Access . | . . . . . Data Cores Recovered . | . . . . . Used . | . . . . . Hacking Detections 10 | . 9 . . 1 Full Trace Events 8 | . 7 . . 1 Feedback Events 3 | . 2 . . 1 Corruption 3 | . 2 . . 1 Feedback Blocked . | . . . . . Robot Schematics Acquired . | . . . . . Robots Built . | . . . . . Authchips . | . . . . . Time . | . . . . . Total Robot Build Rating . | . . . . . Part Schematics Acquired . | . . . . . Parts Built . | . . . . . Authchips . | . . . . . Time . | . . . . . Total Part Build Rating . | . . . . . Parts Repaired 2 | . 2 . . . Time 52 | . 52 . . . Parts Recycled . | . . . . . Recycled Matter . | . . . . . Retrieved Matter . | . . . . . Retrieved Components . | . . . . . Parts Scanalyzed . | . . . . . Part Schematics Acquired . | . . . . . Parts Damaged . | . . . . . Bothacking | -11 -10 -10 -7 -5 ------------ Run | Yrd Mat Sub Scr Fac Used RIF Installer . | . . . . . Robots Hacked . | . . . . . Non-combat . | . . . . . Combat . | . . . . . Robot Hacks Applied . | . . . . . Relay Couplers Released . | . . . . . Fabnet Peak Effective % . | . . . . . Robots Rewired . | . . . . . Allies Hacked . | . . . . . Hacks Repelled . | . . . . . Allies | -11 -10 -10 -7 -5 -------- Run | Yrd Mat Sub Scr Fac Total Allies . | . . . . . Largest Group . | . . . . . Highest-Rated Group . | . . . . . Highest-Rated Ally . | . . . . . Total Orders . | . . . . . Ally Attacks . | . . . . . Total Damage . | . . . . . Kills . | . . . . . Allies Corrupted . | . . . . . Allies Melted . | . . . . . Intel | -11 -10 -10 -7 -5 ------- Run | Yrd Mat Sub Scr Fac Active Infowar (turns) 2083 | . . . 1534 549 Terrain 1816 | . . . 1274 542 Structural 2083 | . . . 1534 549 Robot Analysis Total . | . . . . . Derelict Logs Recovered 1 | . . 1 . . Drone Launches . | . . . . . Drone Recoveries . | . . . . . Exploration | -11 -10 -10 -7 -5 ------------- Run | Yrd Mat Sub Scr Fac Turns Passed 6714 | 62 2847 1435 1539 831 Spaces Moved 1888 | 44 876 340 382 246 Core 13 | 12 . . . 1 Treads . | . . . . . Legs 1875 | 32 876 340 382 245 Wheels . | . . . . . Hover . | . . . . . Flight . | . . . . . Fastest Speed 50 | 50 120 400 400 260 Average Speed 322 | 111 285 400 400 266 Slowest Speed 1700 | 120 400 400 400 1700 Overloaded Moves . | . . . . . Propulsion Burnouts . | . . . . . Robots Hopped . | . . . . . Potential Cave-ins . | . . . . . Cave-ins Triggered . | . . . . . Exploration Rate (%) 32 | 4 95 31 29 4 Regions Visited 4 Branch Regions 2 Pre-discovered Areas . | . . . . . Known Exits Taken 3 | 1 1 . 1 . Unknown Exits Taken 1 | . . 1 . . Scrap Searched 1 | . . . 1 . Spaces Dug . | . . . . . Terrain Destroyed 157 | . 5 93 . 59 Melee . | . . . . . Projectile 2 | . . . . 2 AOE 155 | . 5 93 . 57 Terrain Rammed . | . . . . . Walls Destroyed . | . . . . . Machines Disabled . | . . . . . Actions | -11 -10 -10 -7 -5 --------- Run | Yrd Mat Sub Scr Fac Total 2298 | 53 1144 370 395 336 Wait 231 | . 203 . . 28 Move 1884 | 43 875 339 381 246 Hop . | . . . . . Pick Up 23 | 3 10 5 5 . Fast Attach 11 | 7 2 . 1 1 Attach 20 | . 1 1 2 16 Detach 5 | . . . 2 3 Swap 13 | . 8 2 3 . Drop 4 | . 3 . 1 . Fire 102 | . 38 23 . 41 Melee . | . . . . . Ram . | . . . . . Kick 5 | . 4 . . 1 Crush . | . . . . . Escape Stasis . | . . . . . Rewire . | . . . . . Trap . | . . . . . Miscellaneous . | . . . . . Route ------- -11/Scrapyard -10/Materials (discovered 6 exits: *Mat x3 / *Min x2 / *Sub) -10/Subcaves -7/Scraptown -5/Factory (discovered 1 exit: *Upp) History --------- Turn | Location | Event 5 | -11/Scrapyard | Identified exit to Materials 5 | -11/Scrapyard | Discovered exit to Materials (range 16) 63 | -11/Scrapyard | Entered Materials 63 | -10/Materials | Evolved 1 slot: Utility x1 287 | -10/Materials | Identified exit to Materials 287 | -10/Materials | Discovered exit to Materials (range 7) 319 | -10/Materials | Build established: Hacker-Mutant 633 | -10/Materials | Identified exit to Mines 633 | -10/Materials | Discovered exit to Mines (range 9) 1361 | -10/Materials | Repaired Aluminum Leg 1388 | -10/Materials | Repaired Weapon Shielding 1512 | -10/Materials | Discovered exit to Materials (range 10) 1530 | -10/Materials | Identified exit to Subcaves 1530 | -10/Materials | Discovered exit to Subcaves (range 5) 1768 | -10/Materials | Discovered exit to Mines (range 10) 2479 | -10/Materials | Discovered exit to Materials (range 10) 2910 | -10/Materials | Entered Subcaves 2911 | -10/Subcaves | Approached by a straggling Scientist 3336 | -10/Subcaves | Core integrity fell below 50% 3441 | -10/Subcaves | Learned Materials stockpile data 3520 | -10/Subcaves | A swath of the cavern ceiling suddenly collapsed 3755 | -10/Subcaves | Core integrity fell below 20% 4170 | -10/Subcaves | A swath of the cavern ceiling suddenly collapsed 4240 | -10/Subcaves | Ambushed by Subdweller buried in earth 4263 | -10/Subcaves | Scientist uncovered a shortcut to Scraptown 4345 | -10/Subcaves | Entered Scraptown 4345 | -7/Scraptown | System corruption cleaned by C-Scrubber 5637 | -7/Scraptown | Identified exit to Factory 5637 | -7/Scraptown | Discovered exit to Factory (range 14) 5884 | -7/Scraptown | Entered Factory 5884 | -5/Factory | Evolved 10 slots: Power x2, Propulsion x2, Utility x4, Weapon x2 6082 | -5/Factory | Identified exit to Upper Caves 6082 | -5/Factory | Discovered exit to Upper Caves (range 13) 6180 | -5/Factory | Build established: Hacker-Skirmisher 6605 | -5/Factory | Garrison activated, responded to threat 6715 | -5/Factory | Self-destructed Last Messages --------------- 06686_ Penetrated by Slug. 06687_ K-01 Serf collects debris. 06688_ H-66 Slayer destroyed. 06688_ Slug penetrates Wall. 06688_ Penetrated by Slug. 06690_ Subcomponent Replicator disabled. 06691_ K-01 Serf collects debris. 06691_ Slug penetrates Reinforced Barrier. 06691_ Penetrated by Slug. 06694_ K-01 Serf collects debris. 06695_ Penetrated by Slug. 06695_ Slug penetrates Wall. 06696_ H-66 Slayer destroyed. 06699_ K-01 Serf collects debris. 06700_ Ion Engine destroyed. 06702_ K-01 Serf collects debris. 06710_ Critical hit (Burn: +37). 06711_ K-01 Serf collects debris. 06714_ Matter Filter destroyed. 06715_ Penetrated by Slug. Map ----- +----------------------------------------------------+ | ??????????????????????????????###???????## # | | ?????????????????????????????? #???????########## | | ?????????????????????????????? #???????######### | | ??????????????????????????????" #??????#?######## | | ??????????????????????????????" ##???????######## | | ??????????????????????????????" ##???##??## # | | ??????????????????????????????" #???#????## """ # | | ??????????????????????????????" #????????## "T" # | | ??????????????????????????????" #????????## # | | ?????????????????????????????? #??????#### ## | | ?????????????????????????????? ##?#?????##] " | | ?????????????????????????????? ##?#????### " | | ???????????????????????? ########?#####+### | | ??????????????????######+################### # | | ????????????????? ###### | | ?????????????? ?? % | | ????????????? ? ######% | | ???????????? ###### % # | | ???????????? ##??#### ### | | ????????????h ########/### | | ??????????? k % # | | ??????????? ;###### T## # | | ?????????? ##### # """ """ | | ?????????? ##### # """ """ | | ?????????? !#??## # """ """ | | ?????????? |@##### #% | | ?????????? !!%g% + """ """ | | ?????????? *=##### # """ """ | | ??????????? !#?### # """ ""? | | ??????????? # #??## # | | ?????????????# #???####### # ?? | | ?????????????# #???????### # = ? | | ?????????????# #?????????# #######+#### | | ?????????????# #?????????# ###???? #??? | | ?????????????##############?????????# #???????#??? | | ????????????????????????????????????? #??????????? | | ????????????????????????????????????? ??????????? | | ????????????????????????????????????? ??????????? | | ?????????????????????????????????????T ??????????? | | ????????????????????????????????????? ??????????? | | ?????????????????????????????????????? ??????????? | | ??????????????????????????????????????#??????????? | | ?????????????????????????????????????????????????? | | ?????????????????????????????????????????????????? | | ?????????????????????????????????????????????????? | | ?????????????????????????????????????????????????? | | ?????????????????????????????????????????????????? | | ?????????????????????????????????????????????????? | | ?????????????????????????????????????????????????? | | ?????????????????????????????????????????????????? | +----------------------------------------------------+ Best States ------------- Heat Dissipation 59 Energy Generation 24 Energy Capacity 575 Matter Stores 450 Matter Capacity 450 Sight Range 16 Terrain Scan Range 14 Terrain Scan Density 10 Resistance: KI 35 Resistance: TH 35 Resistance: EX 35 Resistance: EM 35 Resistance: I 35 Resistance: S 35 Resistance: P 35 Weapon Shielding 33 Evasion (%) 55 Targeting Accuracy 6 Matter Filtering 30 Offensive Hacking 20 Item Schematics ----------------- None Robot Schematics ------------------ None Fabricated ------------ Nothing Repaired ---------- Aluminum Leg | 38% | -10/Materials Weapon Shielding | 54% | -10/Materials Alien Tech Used ----------------- None Achievements -------------- None Challenges ------------ None Game ------ Seed TeslaHackingMask Manual? 0 Play Time 00:24:58 Cumulative 2094.5 hours Start 2025.07.01 @ 11:58:47 End 2025.07.01 @ 12:25:56 Sessions 1 Manual Loads 0 Difficulty Explorer Special Mode None Game No. 1038 Rogue 62 Adventurer 0 Explorer 976 Win Type - Total 11 Types 11/0/0/0/0/0/0/0/0/0 Lore% 60 Gallery% 72 Achievement% 64 Wizard Run 0 Options --------- Layout 1 ASCII 0 Keyboard 0 Movement Numpad Keybinds 0 Fullscreen 1 Font 48/Smallcaps Map View 55x35 Zoom Use 0% Tactical HUD 1 Map Filters NONE Filters NONE Steam 1 RUN: 710c703e-8585-4610-90b8-a5b099e7d197